[Event "Early-Titled-Tuesday-Blitz-February-27-2024"]
[Site "Chess.com"]
[Date "2024.02.27"]
[Round "6"]
[White "azikom"]
[Black "nicolasbatista3"]
[Result "1-0"]
[WhiteElo "2630"]
[BlackElo "2421"]
[TimeControl "180+1"]
[EndTime "9:04:39 PST"]
[Termination "azikom won on time"]

1. c4 {[%clk 0:03:00]} 1... c6 {[%clk 0:02:59.8]} 2. e4 {[%clk 0:02:59.3]} 2...
d5 {[%clk 0:03:00]} 3. exd5 {[%clk 0:02:59.8]} 3... cxd5 {[%clk 0:03:00.9]} 4.
cxd5 {[%clk 0:03:00.7]} 4... Nf6 {[%clk 0:03:01.7]} 5. Qa4+ {[%clk 0:03:00.8]}
5... Nbd7 {[%clk 0:02:57.8]} 6. Nc3 {[%clk 0:03:00.5]} 6... g6 {[%clk
0:02:57.3]} 7. Bc4 {[%clk 0:03:00.7]} 7... Bg7 {[%clk 0:02:57.3]} 8. d3 {[%clk
0:02:55.9]} 8... O-O {[%clk 0:02:57.1]} 9. Nf3 {[%clk 0:02:56.3]} 9... Nb6
{[%clk 0:02:42.7]} 10. Qb3 {[%clk 0:02:55.5]} 10... Bf5 {[%clk 0:02:42.8]} 11.
O-O {[%clk 0:02:51.9]} 11... Rc8 {[%clk 0:02:42]} 12. Re1 {[%clk 0:02:47.8]}
12... Ng4 {[%clk 0:02:23.9]} 13. Bf4 {[%clk 0:02:32.9]} 13... h6 {[%clk
0:02:20.5]} 14. h3 {[%clk 0:02:31.3]} 14... Nf6 {[%clk 0:02:20.8]} 15. Be5
{[%clk 0:02:31.1]} 15... Qd7 {[%clk 0:02:14.4]} 16. Rad1 {[%clk 0:02:13.2]}
16... Bxh3 {[%clk 0:02:10.7]} 17. gxh3 {[%clk 0:02:09.8]} 17... Qxh3 {[%clk
0:02:11.6]} 18. Bg3 {[%clk 0:02:02.7]} 18... h5 {[%clk 0:01:58.8]} 19. Ne4
{[%clk 0:01:39.4]} 19... Qg4 {[%clk 0:01:10.5]} 20. Nh2 {[%clk 0:01:35.7]} 20...
Qh3 {[%clk 0:01:05.5]} 21. Nxf6+ {[%clk 0:01:19.1]} 21... Bxf6 {[%clk
0:01:05.5]} 22. Re4 {[%clk 0:01:12.4]} 22... h4 {[%clk 0:01:02.1]} 23. Be5
{[%clk 0:01:09.2]} 23... Bxe5 {[%clk 0:00:32.7]} 24. Rxe5 {[%clk 0:01:08.9]}
24... Rfd8 {[%clk 0:00:26.7]} 25. Rde1 {[%clk 0:01:04.8]} 25... Nd7 {[%clk
0:00:22.4]} 26. Rxe7 {[%clk 0:00:58.8]} 26... Nf6 {[%clk 0:00:15.9]} 27. R1e3
{[%clk 0:00:43]} 27... Qf5 {[%clk 0:00:14.8]} 28. d6 {[%clk 0:00:35.6]} 28...
Ng4 {[%clk 0:00:11.8]} 29. Nxg4 {[%clk 0:00:34.8]} 29... Qxg4+ {[%clk
0:00:11.8]} 30. Kh1 {[%clk 0:00:25.7]} 30... h3 {[%clk 0:00:06.2]} 31. Qxb7
{[%clk 0:00:20.5]} 31... Qd1+ {[%clk 0:00:01]} 32. Kh2 {[%clk 0:00:20.3]} 32...
Qf1 {[%clk 0:00:01.9]} 33. Qf3 {[%clk 0:00:19.9]} 33... Qc1 {[%clk 0:00:01.2]}
34. Qxf7+ {[%clk 0:00:19.3]} 1-0

[Event "Early-Titled-Tuesday-Blitz-February-27-2024"]
[Site "Chess.com"]
[Date "2024.02.27"]
[Round "6"]
[White "sewlins"]
[Black "Alen_Yeremyann"]
[Result "0-1"]
[WhiteElo "2161"]
[BlackElo "2809"]
[TimeControl "180+1"]
[EndTime "9:04:39 PST"]
[Termination "Alen_Yeremyann won by resignation"]

1. e4 {[%clk 0:02:57.6]} 1... Nf6 {[%clk 0:03:00.9]} 2. e5 {[%clk 0:02:57.4]}
2... Nd5 {[%clk 0:03:01.4]} 3. d4 {[%clk 0:02:58]} 3... d6 {[%clk 0:03:01.2]} 4.
c4 {[%clk 0:02:58.4]} 4... Nb6 {[%clk 0:02:59.7]} 5. f4 {[%clk 0:02:58.5]} 5...
dxe5 {[%clk 0:02:59.7]} 6. fxe5 {[%clk 0:02:59.1]} 6... Bf5 {[%clk 0:03:00.2]}
7. Nf3 {[%clk 0:02:49.6]} 7... e6 {[%clk 0:02:59.1]} 8. Nc3 {[%clk 0:02:50.2]}
8... Nc6 {[%clk 0:02:57.9]} 9. Be3 {[%clk 0:02:40.2]} 9... Bg4 {[%clk
0:02:57.8]} 10. Be2 {[%clk 0:02:38.1]} 10... Bxf3 {[%clk 0:02:57.5]} 11. Bxf3
{[%clk 0:02:39]} 11... Nxc4 {[%clk 0:02:57.6]} 12. Bf2 {[%clk 0:02:30.4]} 12...
Nb6 {[%clk 0:02:56]} 13. Bxc6+ {[%clk 0:02:16]} 13... bxc6 {[%clk 0:02:56.9]}
14. Qg4 {[%clk 0:02:16.3]} 14... h5 {[%clk 0:02:54]} 15. Qg3 {[%clk 0:02:04.5]}
15... h4 {[%clk 0:02:53.8]} 16. Qg4 {[%clk 0:02:03.6]} 16... Nd5 {[%clk
0:02:48]} 17. O-O {[%clk 0:02:01.8]} 17... h3 {[%clk 0:02:40.6]} 18. g3 {[%clk
0:01:58.9]} 18... g6 {[%clk 0:02:36.6]} 19. Ne4 {[%clk 0:01:54.4]} 19... Be7
{[%clk 0:02:36.3]} 20. Rac1 {[%clk 0:01:50.9]} 20... Rb8 {[%clk 0:02:34.7]} 21.
b3 {[%clk 0:01:31.5]} 21... a5 {[%clk 0:02:33.5]} 22. Rxc6 {[%clk 0:01:29.6]}
22... a4 {[%clk 0:02:33]} 23. Be1 {[%clk 0:01:10.7]} 23... Ne3 {[%clk
0:02:29.1]} 24. Qf3 {[%clk 0:00:31.4]} 24... Nxf1 {[%clk 0:02:28.8]} 25. Kxf1
{[%clk 0:00:32.3]} 25... Qxd4 {[%clk 0:02:26.5]} 26. Bc3 {[%clk 0:00:32]} 26...
Qd5 {[%clk 0:02:09.2]} 27. Rxc7 {[%clk 0:00:22.3]} 27... Rf8 {[%clk 0:02:00.1]}
28. Nd6+ {[%clk 0:00:03.8]} 28... Bxd6 {[%clk 0:01:50.6]} 29. Qxd5 {[%clk
0:00:04.7]} 29... exd5 {[%clk 0:01:50.7]} 30. exd6 {[%clk 0:00:05.6]} 30... Rg8
{[%clk 0:01:22.1]} 31. Re7+ {[%clk 0:00:05.8]} 31... Kf8 {[%clk 0:01:21.2]} 32.
bxa4 {[%clk 0:00:05.6]} 32... f5 {[%clk 0:01:09.3]} 33. a5 {[%clk 0:00:04.5]}
33... Rd8 {[%clk 0:01:08.7]} 34. Bb4 {[%clk 0:00:04.1]} 34... d4 {[%clk
0:01:09.4]} 35. a3 {[%clk 0:00:04.2]} 35... Rg7 {[%clk 0:01:08.6]} 36. Ke2
{[%clk 0:00:04.5]} 36... Kg8 {[%clk 0:01:09]} 37. Kd3 {[%clk 0:00:04.3]} 37...
g5 {[%clk 0:01:04.6]} 38. Re5 {[%clk 0:00:03.8]} 38... f4 {[%clk 0:01:02.8]} 39.
gxf4 {[%clk 0:00:02.7]} 39... g4 {[%clk 0:01:02.9]} 40. Rh5 {[%clk 0:00:01.2]}
40... g3 {[%clk 0:01:00.3]} 41. hxg3 {[%clk 0:00:02.1]} 41... Rxg3+ {[%clk
0:00:59]} 42. Kxd4 {[%clk 0:00:03]} 42... Kg7 {[%clk 0:00:58.4]} 43. a6 {[%clk
0:00:01.9]} 43... Rh8 {[%clk 0:00:57.6]} 44. Rd5 {[%clk 0:00:01.1]} 44... h2
{[%clk 0:00:57.3]} 45. d7 {[%clk 0:00:01.6]} 45... h1=Q {[%clk 0:00:54.4]} 46.
d8=Q {[%clk 0:00:02.5]} 46... Rxd8 {[%clk 0:00:54.2]} 47. Rxd8 {[%clk
0:00:03.4]} 47... Qd1+ {[%clk 0:00:53.1]} 48. Ke4 {[%clk 0:00:04]} 48... Qxd8
{[%clk 0:00:54]} 49. a7 {[%clk 0:00:04.1]} 49... Qd3+ {[%clk 0:00:53]} 0-1

[Event "Early-Titled-Tuesday-Blitz-February-27-2024"]
[Site "Chess.com"]
[Date "2024.02.27"]
[Round "6"]
[White "BilodeauA"]
[Black "Cayse"]
[Result "1-0"]
[WhiteElo "3019"]
[BlackElo "2827"]
[TimeControl "180+1"]
[EndTime "9:04:41 PST"]
[Termination "BilodeauA won on time"]

1. e4 {[%clk 0:03:00.9]} 1... e6 {[%clk 0:02:59.9]} 2. d4 {[%clk 0:02:59.1]}
2... d5 {[%clk 0:03:00.1]} 3. Nd2 {[%clk 0:02:59.8]} 3... Nf6 {[%clk 0:02:59.6]}
4. e5 {[%clk 0:02:56.3]} 4... Nfd7 {[%clk 0:02:59.6]} 5. f4 {[%clk 0:02:56.6]}
5... c5 {[%clk 0:02:59.7]} 6. c3 {[%clk 0:02:57]} 6... Nc6 {[%clk 0:02:59.6]} 7.
Ndf3 {[%clk 0:02:57.3]} 7... a5 {[%clk 0:02:58.2]} 8. a3 {[%clk 0:02:57]} 8...
a4 {[%clk 0:02:52.7]} 9. Bd3 {[%clk 0:02:54.5]} 9... Qa5 {[%clk 0:02:46.7]} 10.
Kf2 {[%clk 0:02:44.2]} 10... b5 {[%clk 0:02:41]} 11. Ne2 {[%clk 0:02:43.7]}
11... h6 {[%clk 0:02:40.2]} 12. Rf1 {[%clk 0:02:43]} 12... Ba6 {[%clk 0:02:34]}
13. Kg1 {[%clk 0:02:36.5]} 13... O-O-O {[%clk 0:02:32.1]} 14. f5 {[%clk
0:02:33.4]} 14... Qb6 {[%clk 0:02:19.6]} 15. Kh1 {[%clk 0:02:15.5]} 15... Kb8
{[%clk 0:02:08.7]} 16. Nf4 {[%clk 0:02:09.9]} 16... cxd4 {[%clk 0:02:05.3]} 17.
fxe6 {[%clk 0:01:58.1]} 17... Ndxe5 {[%clk 0:02:00.4]} 18. Nxe5 {[%clk
0:01:36.2]} 18... Nxe5 {[%clk 0:02:00.1]} 19. exf7 {[%clk 0:01:35.9]} 19... dxc3
{[%clk 0:01:51.2]} 20. bxc3 {[%clk 0:01:35.8]} 20... g5 {[%clk 0:01:49.1]} 21.
Ne2 {[%clk 0:01:26.3]} 21... Nxd3 {[%clk 0:01:44.4]} 22. Qxd3 {[%clk 0:01:26.2]}
22... b4 {[%clk 0:01:44.8]} 23. Qf3 {[%clk 0:01:15.9]} 23... b3 {[%clk
0:01:39.9]} 24. Be3 {[%clk 0:01:16]} 24... Bc5 {[%clk 0:01:37.2]} 25. Bxc5
{[%clk 0:00:57.9]} 25... Qxc5 {[%clk 0:01:38.1]} 26. Rf2 {[%clk 0:00:56.5]}
26... g4 {[%clk 0:00:34.2]} 27. Qg3+ {[%clk 0:00:55.2]} 27... Ka8 {[%clk
0:00:28.9]} 28. Nd4 {[%clk 0:00:54.6]} 28... Bc8 {[%clk 0:00:10.7]} 29. Re1
{[%clk 0:00:50.6]} 29... h5 {[%clk 0:00:07.7]} 30. Rf6 {[%clk 0:00:46.2]} 30...
b2 {[%clk 0:00:05.3]} 31. Rc6 {[%clk 0:00:36.8]} 31... Qxa3 {[%clk 0:00:03.4]}
32. Qc7 {[%clk 0:00:26.9]} 32... Qa1 {[%clk 0:00:03.1]} 33. Qa5+ {[%clk
0:00:25.5]} 33... Kb8 {[%clk 0:00:02]} 34. Rb6+ {[%clk 0:00:17.4]} 34... Bb7
{[%clk 0:00:02]} 35. Nc6+ {[%clk 0:00:16.1]} 35... Kc8 {[%clk 0:00:02]} 36. c4
{[%clk 0:00:15]} 1-0

[Event "Early-Titled-Tuesday-Blitz-February-27-2024"]
[Site "Chess.com"]
[Date "2024.02.27"]
[Round "6"]
[White "vishwa_vijeta"]
[Black "ChadBiryani"]
[Result "1-0"]
[WhiteElo "2596"]
[BlackElo "2411"]
[TimeControl "180+1"]
[EndTime "9:04:41 PST"]
[Termination "vishwa_vijeta won by resignation"]

1. e4 {[%clk 0:03:00.9]} 1... d6 {[%clk 0:02:58.3]} 2. d4 {[%clk 0:03:00]} 2...
Nf6 {[%clk 0:02:57.3]} 3. Nc3 {[%clk 0:02:58.3]} 3... e5 {[%clk 0:02:57.2]} 4.
dxe5 {[%clk 0:02:58]} 4... dxe5 {[%clk 0:02:57.2]} 5. Qxd8+ {[%clk 0:02:58.7]}
5... Kxd8 {[%clk 0:02:57.6]} 6. Nf3 {[%clk 0:02:59.6]} 6... Bb4 {[%clk
0:02:51.8]} 7. Nxe5 {[%clk 0:02:51.3]} 7... Re8 {[%clk 0:02:49.5]} 8. Bf4 {[%clk
0:02:41.2]} 8... Bxc3+ {[%clk 0:02:37.7]} 9. bxc3 {[%clk 0:02:40.4]} 9... Nxe4
{[%clk 0:02:37.5]} 10. O-O-O+ {[%clk 0:02:40.1]} 10... Ke7 {[%clk 0:02:33.4]}
11. Re1 {[%clk 0:01:55.4]} 11... Nd6 {[%clk 0:02:16]} 12. Bd3 {[%clk 0:01:24]}
12... Kf8 {[%clk 0:02:07.1]} 13. Bxh7 {[%clk 0:01:19.5]} 13... Be6 {[%clk
0:01:59.3]} 14. h4 {[%clk 0:01:09.8]} 14... Na6 {[%clk 0:01:45.2]} 15. h5 {[%clk
0:01:03.5]} 15... Nc5 {[%clk 0:01:35.1]} 16. h6 {[%clk 0:00:58]} 16... g6 {[%clk
0:01:31.2]} 17. Nxg6+ {[%clk 0:00:39.4]} 17... fxg6 {[%clk 0:01:29]} 18. Bxg6
{[%clk 0:00:32.8]} 18... Nf7 {[%clk 0:01:11.9]} 19. h7 {[%clk 0:00:27.9]} 19...
Kg7 {[%clk 0:00:38.1]} 20. Bxf7 {[%clk 0:00:22.8]} 20... Bxf7 {[%clk 0:00:38.5]}
21. Rxe8 {[%clk 0:00:22.2]} 21... Rxe8 {[%clk 0:00:36.4]} 22. Be5+ {[%clk
0:00:22.3]} 22... Kg6 {[%clk 0:00:30.8]} 23. h8=Q {[%clk 0:00:22.2]} 23... Rxh8
{[%clk 0:00:30.3]} 24. Rxh8 {[%clk 0:00:21.9]} 24... c6 {[%clk 0:00:26.9]} 25.
f4 {[%clk 0:00:21.5]} 25... Bxa2 {[%clk 0:00:19.2]} 26. g4 {[%clk 0:00:19.9]}
26... Bd5 {[%clk 0:00:19.7]} 27. Rh5 {[%clk 0:00:16.6]} 27... a5 {[%clk
0:00:19.3]} 28. f5+ {[%clk 0:00:17.2]} 28... Kf7 {[%clk 0:00:18.2]} 29. Rh7+
{[%clk 0:00:17.6]} 29... Kf8 {[%clk 0:00:18.9]} 30. g5 {[%clk 0:00:15.6]} 30...
a4 {[%clk 0:00:19]} 31. g6 {[%clk 0:00:14.4]} 31... a3 {[%clk 0:00:18.3]} 32.
Bd6+ {[%clk 0:00:14.8]} 32... Kg8 {[%clk 0:00:17]} 33. Bxc5 {[%clk 0:00:15.4]}
33... a2 {[%clk 0:00:16.3]} 34. Kb2 {[%clk 0:00:16]} 34... b5 {[%clk 0:00:13.6]}
35. Bd4 {[%clk 0:00:15.8]} 35... Kf8 {[%clk 0:00:13]} 36. f6 {[%clk 0:00:14.7]}
1-0

[Event "Early-Titled-Tuesday-Blitz-February-27-2024"]
[Site "Chess.com"]
[Date "2024.02.27"]
[Round "6"]
[White "PepeCuenca"]
[Black "Elsa167"]
[Result "0-1"]
[WhiteElo "2711"]
[BlackElo "2890"]
[TimeControl "180+1"]
[EndTime "9:04:42 PST"]
[Termination "Elsa167 won on time"]

1. d4 {[%clk 0:03:00.9]} 1... Nf6 {[%clk 0:02:59.3]} 2. Bf4 {[%clk 0:03:00.9]}
2... g6 {[%clk 0:02:57.7]} 3. Nc3 {[%clk 0:03:01]} 3... d6 {[%clk 0:02:47.6]} 4.
e4 {[%clk 0:03:01]} 4... c6 {[%clk 0:02:48.1]} 5. Qd2 {[%clk 0:02:53.8]} 5...
Qa5 {[%clk 0:02:40.9]} 6. f3 {[%clk 0:02:47]} 6... b5 {[%clk 0:02:23.5]} 7. a4
{[%clk 0:02:11.4]} 7... Nbd7 {[%clk 0:02:11.9]} 8. Be3 {[%clk 0:01:56.8]} 8...
Bg7 {[%clk 0:02:04.1]} 9. Nh3 {[%clk 0:01:45]} 9... e5 {[%clk 0:01:56.8]} 10.
Be2 {[%clk 0:01:33.6]} 10... O-O {[%clk 0:01:46.3]} 11. O-O {[%clk 0:01:32.6]}
11... b4 {[%clk 0:01:44.7]} 12. Nd1 {[%clk 0:01:30.2]} 12... d5 {[%clk
0:01:21.2]} 13. Nhf2 {[%clk 0:00:50.5]} 13... dxe4 {[%clk 0:01:11.4]} 14. fxe4
{[%clk 0:00:48.1]} 14... exd4 {[%clk 0:01:10.7]} 15. Bxd4 {[%clk 0:00:48.4]}
15... Re8 {[%clk 0:01:02.1]} 16. Ne3 {[%clk 0:00:38]} 16... Ne5 {[%clk
0:00:41.5]} 17. Nc4 {[%clk 0:00:32.4]} 17... Nxc4 {[%clk 0:00:40.8]} 18. Bxc4
{[%clk 0:00:33.3]} 18... Be6 {[%clk 0:00:37.8]} 19. Bxe6 {[%clk 0:00:30.2]}
19... Rxe6 {[%clk 0:00:38.7]} 20. e5 {[%clk 0:00:29.8]} 20... Nd5 {[%clk
0:00:37]} 21. Ne4 {[%clk 0:00:29.8]} 21... Bxe5 {[%clk 0:00:31]} 22. Ng5 {[%clk
0:00:28.3]} 22... Bxd4+ {[%clk 0:00:23.5]} 23. Qxd4 {[%clk 0:00:28.3]} 23... Re7
{[%clk 0:00:24.4]} 24. Qh4 {[%clk 0:00:21.2]} 24... h5 {[%clk 0:00:24.8]} 25.
Kh1 {[%clk 0:00:14.8]} 25... Rae8 {[%clk 0:00:21.5]} 26. Rad1 {[%clk 0:00:12.9]}
26... Qc5 {[%clk 0:00:20.3]} 27. Rd2 {[%clk 0:00:06]} 27... Ne3 {[%clk
0:00:17.7]} 28. Rg1 {[%clk 0:00:02.9]} 28... Ng4 {[%clk 0:00:17.1]} 29. h3
{[%clk 0:00:02.1]} 29... Ne3 {[%clk 0:00:16.1]} 30. Nf3 {[%clk 0:00:01.3]} 30...
Nf5 {[%clk 0:00:15.4]} 31. Qf4 {[%clk 0:00:01.4]} 31... Re4 {[%clk 0:00:15.2]}
32. Qh2 {[%clk 0:00:01.3]} 32... h4 {[%clk 0:00:11.9]} 33. Ng5 {[%clk
0:00:01.7]} 33... Ng3+ {[%clk 0:00:12.2]} 34. Qxg3 {[%clk 0:00:01.6]} 34... hxg3
{[%clk 0:00:13.1]} 35. Nxe4 {[%clk 0:00:02.3]} 35... Rxe4 {[%clk 0:00:14]} 0-1

[Event "Early-Titled-Tuesday-Blitz-February-27-2024"]
[Site "Chess.com"]
[Date "2024.02.27"]
[Round "6"]
[White "hmatyi07"]
[Black "UnTucopalaTimba"]
[Result "1/2-1/2"]
[WhiteElo "2298"]
[BlackElo "1989"]
[TimeControl "180+1"]
[EndTime "9:04:43 PST"]
[Termination "Game drawn by agreement"]

1. e4 {[%clk 0:03:00.9]} 1... c6 {[%clk 0:02:59.8]} 2. d4 {[%clk 0:03:00.2]}
2... d5 {[%clk 0:03:00.7]} 3. Nc3 {[%clk 0:02:57.6]} 3... dxe4 {[%clk
0:03:00.1]} 4. Nxe4 {[%clk 0:02:58.5]} 4... Bf5 {[%clk 0:02:58.9]} 5. Ng3 {[%clk
0:02:58.3]} 5... Bg6 {[%clk 0:02:58.8]} 6. Nf3 {[%clk 0:02:58.7]} 6... Nd7
{[%clk 0:02:58.3]} 7. h4 {[%clk 0:02:58.1]} 7... h6 {[%clk 0:02:58.3]} 8. h5
{[%clk 0:02:58.2]} 8... Bh7 {[%clk 0:02:58.3]} 9. Bd3 {[%clk 0:02:58.9]} 9...
Bxd3 {[%clk 0:02:58.2]} 10. Qxd3 {[%clk 0:02:59.6]} 10... e6 {[%clk 0:02:58.5]}
11. Bd2 {[%clk 0:02:56.5]} 11... Ngf6 {[%clk 0:02:58.4]} 12. O-O-O {[%clk
0:02:54.9]} 12... Be7 {[%clk 0:02:57.5]} 13. Nf1 {[%clk 0:02:53.6]} 13... O-O
{[%clk 0:02:41.6]} 14. Ne3 {[%clk 0:02:52]} 14... c5 {[%clk 0:02:37.6]} 15. g4
{[%clk 0:02:49.7]} 15... cxd4 {[%clk 0:02:36.8]} 16. Qxd4 {[%clk 0:02:41.1]}
16... Bc5 {[%clk 0:02:26.5]} 17. Qd3 {[%clk 0:02:37.3]} 17... Qc7 {[%clk
0:02:12]} 18. g5 {[%clk 0:02:31.3]} 18... hxg5 {[%clk 0:02:10.7]} 19. Nc4 {[%clk
0:02:17.3]} 19... Rfd8 {[%clk 0:01:44.8]} 20. Qe2 {[%clk 0:02:05.6]} 20... g4
{[%clk 0:01:37.2]} 21. Ng5 {[%clk 0:02:00.6]} 21... b5 {[%clk 0:01:23.9]} 22.
Ne3 {[%clk 0:01:44.1]} 22... Qe5 {[%clk 0:00:55.4]} 23. f4 {[%clk 0:01:21.3]}
23... Qxf4 {[%clk 0:00:45.2]} 24. Nd5 {[%clk 0:01:16.4]} 24... Qc4 {[%clk
0:00:33.3]} 25. Nxf6+ {[%clk 0:00:54.7]} 25... Nxf6 {[%clk 0:00:32.5]} 26. Qg2
{[%clk 0:00:40]} 26... Qxa2 {[%clk 0:00:23]} 27. c3 {[%clk 0:00:40]} 27... b4
{[%clk 0:00:19.6]} 28. h6 {[%clk 0:00:27.5]} 28... bxc3 {[%clk 0:00:19.2]} 29.
Bxc3 {[%clk 0:00:23.6]} 29... Be3+ {[%clk 0:00:18.8]} 30. Rd2 {[%clk 0:00:18]}
30... Bxd2+ {[%clk 0:00:18]} 31. Bxd2 {[%clk 0:00:18.5]} 31... Rac8+ {[%clk
0:00:17.8]} 32. Bc3 {[%clk 0:00:19]} 32... Rxc3+ {[%clk 0:00:16.6]} 33. bxc3
{[%clk 0:00:18]} 33... Qxg2 {[%clk 0:00:16.5]} 34. h7+ {[%clk 0:00:18.3]} 34...
Kf8 {[%clk 0:00:12.2]} 35. h8=Q+ {[%clk 0:00:17.8]} 35... Ke7 {[%clk 0:00:12.4]}
36. Qh2 {[%clk 0:00:09.5]} 1/2-1/2

[Event "Early-Titled-Tuesday-Blitz-February-27-2024"]
[Site "Chess.com"]
[Date "2024.02.27"]
[Round "6"]
[White "Heinza9"]
[Black "Hananmo"]
[Result "0-1"]
[WhiteElo "2331"]
[BlackElo "2526"]
[TimeControl "180+1"]
[EndTime "9:04:44 PST"]
[Termination "Hananmo won by resignation"]

1. e4 {[%clk 0:03:00.9]} 1... c5 {[%clk 0:02:59.5]} 2. Nf3 {[%clk 0:03:00]} 2...
e6 {[%clk 0:02:59.8]} 3. b3 {[%clk 0:02:59.7]} 3... d5 {[%clk 0:02:58.8]} 4.
exd5 {[%clk 0:02:59.5]} 4... exd5 {[%clk 0:02:58.7]} 5. Bb5+ {[%clk 0:02:59.6]}
5... Bd7 {[%clk 0:02:58.2]} 6. Qe2+ {[%clk 0:02:59.6]} 6... Qe7 {[%clk
0:02:53.8]} 7. Bxd7+ {[%clk 0:02:59.3]} 7... Nxd7 {[%clk 0:02:53]} 8. Qxe7+
{[%clk 0:02:59.3]} 8... Bxe7 {[%clk 0:02:52.5]} 9. Bb2 {[%clk 0:02:59.5]} 9...
Bf6 {[%clk 0:02:52.3]} 10. Bxf6 {[%clk 0:02:56.9]} 10... Ngxf6 {[%clk
0:02:53.2]} 11. Nc3 {[%clk 0:02:57]} 11... O-O {[%clk 0:02:51.2]} 12. O-O {[%clk
0:02:57.1]} 12... d4 {[%clk 0:02:48.6]} 13. Na4 {[%clk 0:02:52.4]} 13... Rfe8
{[%clk 0:02:43.9]} 14. Rfe1 {[%clk 0:02:52]} 14... b6 {[%clk 0:02:43.2]} 15. h3
{[%clk 0:02:50]} 15... Nd5 {[%clk 0:02:43.2]} 16. Nb2 {[%clk 0:02:41.3]} 16...
Kf8 {[%clk 0:02:27.9]} 17. Nd3 {[%clk 0:02:33.5]} 17... f6 {[%clk 0:02:14.3]}
18. a4 {[%clk 0:02:32.7]} 18... Kf7 {[%clk 0:02:13.9]} 19. Rxe8 {[%clk
0:02:22.3]} 19... Rxe8 {[%clk 0:02:13]} 20. a5 {[%clk 0:02:22.7]} 20... b5
{[%clk 0:02:08.4]} 21. a6 {[%clk 0:02:18.2]} 21... Nc7 {[%clk 0:01:55.7]} 22.
Ra5 {[%clk 0:02:14.9]} 22... Re6 {[%clk 0:01:49.9]} 23. b4 {[%clk 0:02:11.4]}
23... Rxa6 {[%clk 0:01:32.4]} 24. Rxa6 {[%clk 0:02:04.3]} 24... Nxa6 {[%clk
0:01:33.3]} 25. bxc5 {[%clk 0:02:04.3]} 25... Naxc5 {[%clk 0:01:32.5]} 26. Nxc5
{[%clk 0:02:02.7]} 26... Nxc5 {[%clk 0:01:32.8]} 27. Nxd4 {[%clk 0:02:03]} 27...
a6 {[%clk 0:01:31]} 28. Kf1 {[%clk 0:02:03.1]} 28... Ke7 {[%clk 0:01:15.5]} 29.
Ke2 {[%clk 0:02:02.8]} 29... Kd6 {[%clk 0:01:14.4]} 30. Nf5+ {[%clk 0:02:00.7]}
30... Kd5 {[%clk 0:01:14.1]} 31. Nxg7 {[%clk 0:02:00.7]} 31... a5 {[%clk
0:01:14.1]} 32. Nf5 {[%clk 0:01:55.5]} 32... a4 {[%clk 0:01:12.7]} 33. Kd1
{[%clk 0:01:55.4]} 33... a3 {[%clk 0:01:00.6]} 34. Kc1 {[%clk 0:01:55.4]} 34...
Ne4 {[%clk 0:01:01.2]} 35. Ne3+ {[%clk 0:01:49]} 35... Kc5 {[%clk 0:00:58.1]}
36. d3 {[%clk 0:01:29.6]} 36... Nxf2 {[%clk 0:00:34.1]} 37. Kb1 {[%clk
0:01:26.5]} 37... Kd4 {[%clk 0:00:32.2]} 38. Nf5+ {[%clk 0:01:24]} 38... Kc3
{[%clk 0:00:32.2]} 39. Nd6 {[%clk 0:01:22.9]} 39... b4 {[%clk 0:00:27.8]} 40.
Nb5+ {[%clk 0:01:21.4]} 40... Kd2 {[%clk 0:00:27.9]} 41. d4 {[%clk 0:01:20.7]}
41... Ne4 {[%clk 0:00:19.9]} 42. d5 {[%clk 0:01:18.8]} 42... a2+ {[%clk
0:00:20.5]} 43. Kxa2 {[%clk 0:01:10.6]} 43... Kxc2 {[%clk 0:00:21.4]} 44. d6
{[%clk 0:01:04]} 44... Nxd6 {[%clk 0:00:16.7]} 45. Nxd6 {[%clk 0:01:01.3]} 45...
b3+ {[%clk 0:00:17.2]} 46. Ka3 {[%clk 0:00:59.9]} 46... b2 {[%clk 0:00:18.1]}
0-1

[Event "Early-Titled-Tuesday-Blitz-February-27-2024"]
[Site "Chess.com"]
[Date "2024.02.27"]
[Round "6"]
[White "SantoBlue"]
[Black "Polish_fighter3000"]
[Result "1-0"]
[WhiteElo "2977"]
[BlackElo "3075"]
[TimeControl "180+1"]
[EndTime "9:04:46 PST"]
[Termination "SantoBlue won on time"]

1. e4 {[%clk 0:01:30.6]} 1... e5 {[%clk 0:02:59.3]} 2. Nf3 {[%clk 0:01:29.1]}
2... Nc6 {[%clk 0:02:59.4]} 3. Nc3 {[%clk 0:01:29.8]} 3... Nf6 {[%clk
0:02:43.5]} 4. d4 {[%clk 0:01:30]} 4... exd4 {[%clk 0:02:44.1]} 5. Nxd4 {[%clk
0:01:30.9]} 5... d6 {[%clk 0:02:44.7]} 6. Bb5 {[%clk 0:01:28.9]} 6... Bd7 {[%clk
0:02:44.4]} 7. Bxc6 {[%clk 0:01:29.3]} 7... bxc6 {[%clk 0:02:44.6]} 8. Qf3
{[%clk 0:01:28.7]} 8... c5 {[%clk 0:02:33]} 9. Nf5 {[%clk 0:01:27.8]} 9... h6
{[%clk 0:02:19.7]} 10. O-O {[%clk 0:01:08]} 10... g6 {[%clk 0:02:19.6]} 11. Ne3
{[%clk 0:01:05.5]} 11... Bg7 {[%clk 0:02:19.3]} 12. h3 {[%clk 0:00:59.7]} 12...
O-O {[%clk 0:02:18.2]} 13. Bd2 {[%clk 0:01:00.3]} 13... Rb8 {[%clk 0:02:16.6]}
14. b3 {[%clk 0:01:00.6]} 14... Re8 {[%clk 0:02:16.1]} 15. Rae1 {[%clk
0:00:59.4]} 15... Nh7 {[%clk 0:01:47.1]} 16. Ned5 {[%clk 0:00:51.9]} 16... Ng5
{[%clk 0:01:43.5]} 17. Bxg5 {[%clk 0:00:51]} 17... hxg5 {[%clk 0:01:44.4]} 18.
Na4 {[%clk 0:00:46.9]} 18... Bxa4 {[%clk 0:01:19.3]} 19. bxa4 {[%clk 0:00:47.8]}
19... c6 {[%clk 0:01:19.8]} 20. Ne3 {[%clk 0:00:48.4]} 20... Rb4 {[%clk
0:01:14.4]} 21. e5 {[%clk 0:00:48.6]} 21... d5 {[%clk 0:00:54.7]} 22. Ng4 {[%clk
0:00:48.7]} 22... Rxa4 {[%clk 0:00:55.2]} 23. g3 {[%clk 0:00:48.7]} 23... Qd7
{[%clk 0:00:45.9]} 24. Qe3 {[%clk 0:00:36.2]} 24... Rc4 {[%clk 0:00:35.9]} 25.
Qxg5 {[%clk 0:00:34.8]} 25... Rxc2 {[%clk 0:00:35.4]} 26. Nf6+ {[%clk
0:00:20.9]} 26... Bxf6 {[%clk 0:00:35.4]} 27. exf6 {[%clk 0:00:21.8]} 27... Re6
{[%clk 0:00:33.2]} 28. Re5 {[%clk 0:00:11.9]} 28... Qd6 {[%clk 0:00:21.7]} 29.
Rfe1 {[%clk 0:00:09.3]} 29... Rxe5 {[%clk 0:00:07]} 30. Rxe5 {[%clk 0:00:08.6]}
30... Qf8 {[%clk 0:00:07.7]} 31. Qe3 {[%clk 0:00:06.8]} 31... Kh7 {[%clk
0:00:02.4]} 32. Re8 {[%clk 0:00:04.5]} 32... Qd6 {[%clk 0:00:01.2]} 33. Rh8+
{[%clk 0:00:03.5]} 1-0